{"text_format":"1","workbook":"xlsx","n_sheets":5,"sheets":["NOMBRE","BM18","BM18A","Control","MACROS"],"not_rendered":{"charts":0,"images":1,"macros":1,"external_links":0,"defined_names":11,"comments":1,"pivot_tables":0},"unopened":[],"bounds":{"document_bytes":16777216,"sheet_cells":100000,"rows_first":2000,"rows_last":500,"rows_between":2000,"halvings":0,"cell_chars":16384,"cell_head_chars":4096},"cells_cut":0,"cells_raw":0,"read":"whole","date_system":"1900"}

{"sheet":"NOMBRE","index":0,"n_rows":36,"n_cols":32,"rows_kept":36,"cut":false,"hidden":false,"merged":[[1,8,1,13],[2,8,2,13],[13,0,13,1],[16,1,18,1],[0,0,0,1],[0,2,0,6],[8,0,8,1]]}
["DATOS DEL ESTABLECIMIENTO",null,"CÓDIGOS"]
["NOMBRE DE COMUNA",null,null,null,null,null,null,null,{"$f":"IF(OR(NOMBRE!C2=\"\",NOMBRE!D2=\"\",NOMBRE!E2=\"\",NOMBRE!F2=\"\",NOMBRE!G2=\"\"),\"Falta Cód. Com.\",\"\")","v":"Falta Cód. Com."},null,null,null,null,null,null,null,null,null,null,null,null,null,null,null,null,null,null,null,null,null,null,{"$f":"IF(I2>\"\",1,0)","v":1}]
["NOMBRE ESTABLECIMIENTO/ESTRATEGIA",null,null,null,null,null,null,null,{"$f":"IF(OR(NOMBRE!C3=\"\",NOMBRE!D3=\"\",NOMBRE!E3=\"\",NOMBRE!F3=\"\",NOMBRE!G3=\"\",NOMBRE!H3=\"\"),\"Falta Cód. Est.\",\"\")","v":"Falta Cód. Est."},null,null,null,null,null,null,null,null,null,null,null,null,null,null,null,null,null,null,null,null,null,null,{"$f":"IF(I3>\"\",1,0)","v":1}]
["TIPO DE ESTABLECIMIENTO/ESTRATEGIA",null,null,null,null,null,null,null,{"$f":"IF(OR(NOMBRE!B4=\"\"),\"Falta Tipo. Est.\",\"\")","v":"Falta Tipo. Est."},null,null,null,null,null,null,null,null,null,null,null,null,null,null,null,null,null,null,null,null,null,null,{"$f":"IF(I4>\"\",1,0)","v":1}]
["DEPENDENCIA",null,null,null,null,null,null,null,{"$f":"IF(OR(NOMBRE!B5=\"\"),\"Falta Dependencia. Est.\",\"\")","v":"Falta Dependencia. Est."},null,null,null,null,null,null,null,null,null,null,null,null,null,null,null,null,null,null,null,null,null,null,{"$f":"IF(I5>\"\",1,0)","v":1}]
["MES:",null,null,null,null,null,null,null,{"$f":"IF(OR(NOMBRE!C6=\"\",NOMBRE!D6=\"\"),\"Falta Cód. Mes.\",\"\")","v":"Falta Cód. Mes."},null,null,null,null,null,null,null,null,null,null,null,null,null,null,null,null,null,null,null,null,null,null,{"$f":"IF(I6>\"\",1,0)","v":1}]
["AÑO:",2018,null,null,null,null,null,null,null,null,null,null,null,null,null,null,null,null,null,null,null,null,null,null,null,null,null,null,null,null,null,{"$f":"SUM(AF2:AF6)","v":5}]
[]
["Versión 1.0: ENERO 2018"]
[]
["Director Servicio de Salud o Director Establecimiento",null,null,null,null,null,null,null,null,null,null,null,null,null,null,null,null,null,null,null,null,null,null,null,null,"ENERO","Establecimiento de Mayor Complejidad (EMAYC)","SERVICIO DE SALUD"]
["Jefe de Estadisticas",null,null,null,null,null,null,null,null,null,null,null,null,null,null,null,null,null,null,null,null,null,null,null,null,"FEBRERO","Establecimiento de Mediana Complejidad (EMEDC)","MUNICIPAL"]
[null,null,null,null,null,null,null,null,null,null,null,null,null,null,null,null,null,null,null,null,null,null,null,null,null,"MARZO","Establecimiento de Menor Complejidad (EMENC)","OTRA INSTITUCIÓN (Delegado)"]
["MINSAL - DEIS",null,null,null,null,null,null,null,null,null,null,null,null,null,null,null,null,null,null,null,null,null,null,null,null,"ABRIL","Centros de Diagnóstico Terapéutico (CDT)"]
[null,null,null,null,null,null,null,null,null,null,null,null,null,null,null,null,null,null,null,null,null,null,null,null,null,"MAYO","Centro de Referencia de Salud (CRS)"]
[null,null,null,null,null,null,null,null,null,null,null,null,null,null,null,null,null,null,null,null,null,null,null,null,null,"JUNIO","Consultorio General Urbano (CGU)"]
[null,"SERIE BM ESTABLECIMIENTOS AREA MUNICIPAL",null,null,null,null,null,null,null,null,null,null,null,null,null,null,null,null,null,null,null,null,null,null,null,"JULIO","Consultorio General Urbano (CGU) - CESFAM"]
[null,null,null,null,null,null,null,null,null,null,null,null,null,null,null,null,null,null,null,null,null,null,null,null,null,"AGOSTO","Consultorio General Urbano(CGU) con SAPU/SUR/SAR"]
[null,null,null,null,null,null,null,null,null,null,null,null,null,null,null,null,null,null,null,null,null,null,null,null,null,"SEPTIEMBRE","Consultorio General Urbano (CGU) - CESFAM con SAPU/SAR"]
[null,null,null,null,null,null,null,null,null,null,null,null,null,null,null,null,null,null,null,null,null,null,null,null,null,"OCTUBRE","Consultorio General Rural (CGR)"]
[null,null,null,null,null,null,null,null,null,null,null,null,null,null,null,null,null,null,null,null,null,null,null,null,null,"NOVIEMBRE","Consultorio General Rural (CGR) - CESFAM"]
[null,null,null,null,null,null,null,null,null,null,null,null,null,null,null,null,null,null,null,null,null,null,null,null,null,"DICIEMBRE","Consultorio General Rural (CGR) con SAPU/SUR/SAR"]
[null,null,null,null,null,null,null,null,null,null,null,null,null,null,null,null,null,null,null,null,null,null,null,null,null,null,"Consultorio General Rural (CGR) - CESFAM con SAPU/SUR/SAR"]
[null,null,null,null,null,null,null,null,null,null,null,null,null,null,null,null,null,null,null,null,null,null,null,null,null,null,"Posta de Salud Rural (PSR)"]
[null,null,null,null,null,null,null,null,null,null,null,null,null,null,null,null,null,null,null,null,null,null,null,null,null,null,"Centro Comunitario de Salud Familiar (CECOF)"]
[null,null,null,null,null,null,null,null,null,null,null,null,null,null,null,null,null,null,null,null,null,null,null,null,null,null,"Consultorio de Salud Mental (COSAM)"]
[null,null,null,null,null,null,null,null,null,null,null,null,null,null,null,null,null,null,null,null,null,null,null,null,null,null,"Programa de Reparación y Atención Integral de Salud (PRAIS)"]
[null,null,null,null,null,null,null,null,null,null,null,null,null,null,null,null,null,null,null,null,null,null,null,null,null,null,"Centro de Atención Funcionarios (CAF)"]
[null,null,null,null,null,null,null,null,null,null,null,null,null,null,null,null,null,null,null,null,null,null,null,null,null,null,"Clínica Dental Móvil (CDM)"]
[null,null,null,null,null,null,null,null,null,null,null,null,null,null,null,null,null,null,null,null,null,null,null,null,null,null,"Dirección Servicio de Salud (DSS)"]
[null,null,null,null,null,null,null,null,null,null,null,null,null,null,null,null,null,null,null,null,null,null,null,null,null,null,"Servicio de Atención Primaria de Urgencia (SAPU)"]
[null,null,null,null,null,null,null,null,null,null,null,null,null,null,null,null,null,null,null,null,null,null,null,null,null,null,"Servicio de Atención Primaria de Urgencia Alta Resolución (SAR)"]
[null,null,null,null,null,null,null,null,null,null,null,null,null,null,null,null,null,null,null,null,null,null,null,null,null,null,"Laboratorio Clínico o Dental"]
[null,null,null,null,null,null,null,null,null,null,null,null,null,null,null,null,null,null,null,null,null,null,null,null,null,null,"Servicio de Atención Primaria de Urgencia Dental (SAPUDENT)"]
[null,null,null,null,null,null,null,null,null,null,null,null,null,null,null,null,null,null,null,null,null,null,null,null,null,null,"Centro de Rehabilitación (CR)"]
[null,null,null,null,null,null,null,null,null,null,null,null,null,null,null,null,null,null,null,null,null,null,null,null,null,null,"Hospital de Campaña"]

{"sheet":"BM18","index":1,"n_rows":89,"n_cols":23,"rows_kept":89,"cut":false,"hidden":false,"merged":[[85,0,85,1],[86,0,86,1],[87,0,87,1],[88,0,88,1],[80,0,81,1],[80,2,81,2],[82,0,82,1],[83,0,83,1],[84,0,84,1],[61,0,61,1],[62,0,62,1],[69,0,70,1],[69,2,70,2],[75,0,75,1],[76,0,78,0],[32,4,33,4],[10,4,11,4],[37,0,37,1],[46,4,47,4],[10,3,11,3],[40,0,40,1],[44,0,44,1],[46,0,47,1],[38,0,38,1],[39,0,39,1],[41,0,41,1],[42,0,42,1],[43,0,43,1],[32,3,33,3],[35,0,35,1],[10,2,11,2],[10,0,11,1],[65,0,66,1],[65,2,66,2],[67,0,67,1],[34,0,34,1],[32,0,33,1],[32,2,33,2],[60,0,60,1],[46,2,47,2],[48,0,48,1],[54,0,54,1],[57,0,58,1],[57,2,58,2],[59,0,59,1],[51,0,51,1],[52,0,52,1],[69,3,69,8],[71,0,71,1],[72,0,72,1],[73,0,73,1],[36,0,36,1],[57,4,58,4],[46,3,47,3],[57,3,58,3],[53,0,53,1]]}
["SERVICIO DE SALUD / ESTABLECIMIENTO MUNICIPAL"]
[{"$f":"CONCATENATE(\"COMUNA: \",NOMBRE!B2,\" - \",\"( \",NOMBRE!C2,NOMBRE!D2,NOMBRE!E2,NOMBRE!F2,NOMBRE!G2,\" )\")","v":"COMUNA:  - (  )"}]
[{"$f":"CONCATENATE(\"ESTABLECIMIENTO/ESTRATEGIA: \",NOMBRE!B3,\" - \",\"( \",NOMBRE!C3,NOMBRE!D3,NOMBRE!E3,NOMBRE!F3,NOMBRE!G3,NOMBRE!H3,\" )\")","v":"ESTABLECIMIENTO/ESTRATEGIA:  - (  )"}]
[{"$f":"CONCATENATE(\"MES: \",NOMBRE!B6,\" - \",\"( \",NOMBRE!C6,NOMBRE!D6,\" )\")","v":"MES:  - (  )"}]
[{"$f":"CONCATENATE(\"AÑO: \",NOMBRE!B7)","v":"AÑO: 2018"}]
[]
[]
[null,null,null,null,"REM-B18.   ACTIVIDADES DE APOYO DIAGNOSTICO y TERAPEUTICO"]
[null,null,null,null,"         (USO EXCLUSIVO DE ESTABLECIMIENTOS MUNICIPALES)"]
["SECCIÓN A: EXÁMENES DE DIAGNOSTICO"]
["EXÁMENES",null,"TOTAL","SAPU/SAR/SUR","NO SAPU/ NO SUR"]
[null,null,null,"Total","Total"]
["TOTAL EXÁMENES LABORATORIO",null,{"$f":"SUM(D13:E13)","v":0},{"$f":"SUM(D14:D16,D18:D19,D24:D25)","v":0},{"$f":"SUM(E14:E16,E18:E19,E24:E25)","v":0}]
["I  ","HEMATOLÓGICOS",{"$f":"SUM(D14:E14)","v":0},{"$f":"BM18A!D98","v":0},{"$f":"BM18A!E98","v":0}]
["II  ","BIOQUÍMICOS",{"$f":"SUM(D15:E15)","v":0},{"$f":"BM18A!D169","v":0},{"$f":"BM18A!E169","v":0}]
["III","HORMONALES",0,{"$f":"BM18A!D176","v":0},{"$f":"BM18A!E176","v":0}]
["IV","GENÉTICA"]
["V","INMUNOLÓGICOS",0,{"$f":"BM18A!D235","v":0},{"$f":"BM18A!E235","v":0}]
["VI  ","MICROBIOLÓGICOS",0,{"$f":"BM18A!D315","v":0},{"$f":"BM18A!E315","v":0}]
[null,"a)   BACTERIAS Y HONGOS"]
[null,"b)   PARÁSITOS"]
[null,"c)   VIRUS"]
["VII","PROCEDIMIENTO O DETERMINACIÓN DIRECTA C/PACIENTE"]
["VIII  ","EX.  DE DEPOSICIONES EXUDADOS. SECREC. Y OTROS LIQ.  ",{"$f":"SUM(D24:E24)","v":0},{"$f":"BM18A!D361","v":0},{"$f":"BM18A!E361","v":0}]
["IX   ","ORINA",0,{"$f":"BM18A!D393","v":0},{"$f":"BM18A!E393","v":0}]
["TOTAL EXÁMENES IMAGENOLOGIA",null,{"$f":"SUM(D26:E26)","v":0},{"$f":"SUM(D27:D28,D30)","v":0},{"$f":"SUM(E27:E28,E30)","v":0}]
["a)","EX. RADIOLÓGICOS SIMPLES",{"$f":"SUM(D27:E27)","v":0},{"$f":"SUM(BM18A!D396:D461)","v":0},{"$f":"SUM(BM18A!E396:E461)","v":0}]
[null," Ecotomografias",{"$f":"SUM(D28:E28)","v":0},{"$f":"SUM(BM18A!D463:D478)","v":0},{"$f":"SUM(BM18A!E463:E478)","v":0}]
[null," Ecotomografias abdominal ",0,{"$f":"BM18A!D463","v":0},{"$f":"BM18A!E463","v":0}]
[null," Ecografias Obstétricas",0,{"$f":"BM18A!D462","v":0},{"$f":"BM18A!E462","v":0}]
[]
["SECCIÓN B:  PROCEDIMIENTO DE APOYO CLÍNICO Y TERAPÉUTICO"]
["PROCEDIMIENTOS",null,"TOTAL","SAPU/SAR/SUR","NO SAPU/ NO SUR"]
[null,null,null,"Total","Total"]
["PROC. DE NEUROLOGÍA Y NEUROCIRUGÍA",null,{"$f":"SUM(D35:E35)","v":0},{"$f":"BM18A!D483","v":0},{"$f":"BM18A!E483","v":0}]
["PROC. DE OFTALMOLOGÍA",null,{"$f":"SUM(D36:E36)","v":0},{"$f":"BM18A!D496","v":0},{"$f":"BM18A!E496","v":0}]
["PROC. DE OTORRINOLARINGOLOGÍA ",null,0,{"$f":"BM18A!D504","v":0},{"$f":"BM18A!E504","v":0}]
["PROC. DE NEUMOLOGÍA",null,0,{"$f":"BM18A!D522","v":0},{"$f":"BM18A!E522","v":0}]
["PROC. DE DERMATOLOGÍA",null,0,{"$f":"BM18A!D511","v":0},{"$f":"BM18A!E511","v":0}]
["PROC. DE CARDIOLOGÍA",null,0,{"$f":"BM18A!D516","v":0},{"$f":"BM18A!E516","v":0}]
["PROC. DE GASTROENTEROLOGÍA",null,0,{"$f":"BM18A!D527","v":0},{"$f":"BM18A!E527","v":0}]
["PROC. DE UROLOGÍA",null,0,{"$f":"BM18A!D531","v":0},{"$f":"BM18A!E531","v":0}]
["PROC. ORTOPEDIA Y TRAUMATOLOGÍA",null,0,{"$f":"BM18A!D542","v":0},{"$f":"BM18A!E542","v":0}]
["PROC. GINECO-OBSTÉTRICOS",null,0,{"$f":"BM18A!D533","v":0},{"$f":"BM18A!E533","v":0}]
["TOTAL",null,{"$f":"SUM(C35:C44)","v":0},{"$f":"SUM(D35:D44)","v":0},{"$f":"SUM(E35:E44)","v":0}]
["SECCIÓN C:  INTERVENCIONES QUIRÚRGICAS MENORES"]
[null,null,"TOTAL","SAPU/SAR/SUR","NO SAPU/ NO SUR"]
[null,null,null,"Total"]
["TOTAL INTERVENCIONES QUIRÚRGICAS MENORES (SUB-GRUPO TEGUMENTOS)",null,{"$f":"SUM(D49:E49)","v":0}]
[]
["SECCIÓN D : INTERVENCIONES QUIRÚRGICAS MENORES POR EDAD"]
["INTERVENCIONES QUIRÚRGICAS",null,"TOTAL","< 15 AÑOS","15 Y + AÑOS"]
["TOTAL",null,{"$f":"SUM(D53:E53)","v":0},{"$f":"SUM(D54:D55)","v":0},{"$f":"SUM(E54:E55)","v":0},{"$f":"V53","v":""},null,null,null,null,null,null,null,null,null,null,null,null,null,null,null,{"$f":"IF(C53=C49,\"\",\"El Total de Intervenciones Quirúrgicas de la Sección C DEBE coincidir con el Total de la Seccion D.\")","v":""},{"$f":"IF(C53=C49,0,1)","v":0}]
["SAPU/SAR",null,{"$f":"SUM(D54:E54)","v":0},null,null,{"$f":"V54","v":""},null,null,null,null,null,null,null,null,null,null,null,null,null,null,null,{"$f":"IF(C54=D49,\"\",\"Las Intervenciones Quirúrgicas Totales Sapu DEBEN cuadrar con las intervenciones por Programa Sapu.\")","v":""},{"$f":"IF(C54=D49,0,1)","v":0}]
["NO SAPU",null,{"$f":"SUM(D55:E55)","v":0},null,null,"",null,null,null,null,null,null,null,null,null,null,null,null,null,null,null,{"$f":"IF(C55=E49,\"\",\"Las Intervenciones Quirúrgicas Totales No Sapu DEBEN cuadrar con las Intervenciones por Programa No Sapu.\")","v":""},{"$f":"IF(C55=E49,0,1)","v":0}]
[]
["SECCIÓN E:  MISCELÁNEOS"]
["MISCELÁNEOS",null,"TOTAL","SAPU/SAR/SUR","NO SAPU/ NO SUR"]
[null,null,null,"Total","Total"]
["PROCEDIMIENTOS DE PODOLOGIA",null,{"$f":"SUM(D60:E60)","v":0},{"$f":"BM18A!D586","v":0},{"$f":"BM18A!E586","v":0}]
["CURACIÓN SIMPLE AMBULATORIA",null,{"$f":"SUM(D61:E61)","v":0},{"$f":"BM18A!D570","v":0},{"$f":"BM18A!E570","v":0}]
["AUTO CUIDADO PACIENTE DID",null,{"$f":"SUM(D62:E62)","v":0},{"$f":"BM18A!D571","v":0},{"$f":"BM18A!E571","v":0}]
["OXIGENOTERAPIA A DOMICILIO",null,0,{"$f":"BM18A!D572","v":0},{"$f":"BM18A!E572","v":0}]
[]
["SECCIÓN F: PRESCRIPCIONES ADMINISTRADAS EN URGENCIA APS"]
["ATENCIÓN",null,"TOTAL"]
[]
["URGENCIA SAPU/SAR"]
["SECCIÓN G : OTRAS ATENCIONES A PACIENTES AMBULATORIOS"]
["TIPO DE ATENCIÓN",null,"TOTAL","ATENCIONES POR EDAD"]
[null,null,null,"< 1 año","1 - 4 años","5 a 9 años","10 a 19 años","20 a 64 años","65 años y más"]
["POR TERAPÉUTICA OCUPACIONAL",null,{"$f":"SUM(D72:I72)","v":0}]
["POR KINESIOLOGO (NO SAPU)",null,{"$f":"SUM(D73:I73)","v":0}]
["POR EDUCADORA DE PÁRVULO/DIFERENCIAL",null,{"$f":"SUM(D74:E74)","v":0}]
["SECCIÓN H: OTROS TRASLADOS DE PACIENTES"]
["TIPO DE ACCION",null,"TOTAL        ","POR COMPRA \nDE SERVICIO"]
["TRASLADOS NO DE URGENCIA","AMBULANCIA"]
[null,"MARÍTIMO"]
[null,"AÉREO"]
["SECCIÓN I: ENTREGA DE AYUDAS TÉCNICAS GES A PERSONAS  EN EL ESTABLECIMIENTO "]
["AYUDA TÉCNICA",null,"TOTAL DE ENTREGA\n> 65 años"]
[]
["BASTÓN"]
["ANDADOR"]
["ANDADOR DE PASILLO"]
["COJÍN ANTIESCARAS"]
["COLCHÓN ANTIESCARA"]
["SILLA DE RUEDAS"]
["LENTES POR PRESBICIA"]

{"sheet":"BM18A","index":2,"n_rows":610,"n_cols":8,"rows_kept":610,"cut":false,"hidden":false,"merged":[[6,1,6,5],[607,0,607,1],[608,0,608,1],[541,0,541,1],[542,0,542,1],[567,0,567,1],[568,0,568,1],[586,0,586,1],[587,0,588,0],[587,1,588,1],[592,0,592,7],[587,2,588,2],[587,3,588,3],[587,4,588,4],[593,7,594,7],[599,0,599,1],[593,0,594,1],[593,2,594,2],[593,3,594,3],[593,4,594,4],[593,5,593,6],[609,0,609,1],[5,0,5,2],[97,0,97,1],[169,0,169,1],[98,0,98,1],[601,0,601,1],[602,0,602,1],[603,0,603,1],[604,0,604,1],[605,0,605,1],[595,0,595,1],[596,0,596,1],[597,0,597,1],[598,0,598,1],[533,0,533,1],[600,0,600,1],[587,5,588,5],[591,0,591,1],[510,0,510,1],[511,0,511,1],[516,0,516,1],[515,0,515,1],[522,0,522,1],[526,0,526,1],[527,0,527,1],[530,0,530,1],[531,0,531,1],[521,0,521,1],[483,0,483,1],[495,0,495,1],[496,0,496,1],[503,0,503,1],[479,5,479,6],[394,0,394,1],[479,0,480,0],[479,1,480,1],[516,2,516,7],[314,0,314,1],[360,0,360,1],[392,0,392,1],[393,0,393,1],[315,0,315,1],[361,0,361,1],[504,0,504,1],[479,2,480,2],[479,3,480,3],[481,0,481,1],[479,4,480,4],[479,7,480,7],[175,0,175,1],[176,2,176,5],[234,0,234,1],[235,2,235,5],[176,0,176,1],[235,0,235,1],[9,2,10,2],[11,2,11,5],[11,0,11,1],[98,2,98,5],[168,0,168,1],[9,0,10,0],[9,1,10,1],[9,3,10,3],[9,4,10,4],[9,5,10,5]]}
["SERVICIO DE SALUD / ESTABLECIMIENTO MUNICIPAL"]
[{"$f":"CONCATENATE(\"COMUNA: \",NOMBRE!B2,\" - \",\"( \",NOMBRE!C2,NOMBRE!D2,NOMBRE!E2,NOMBRE!F2,NOMBRE!G2,\" )\")","v":"COMUNA:  - (  )"}]
[{"$f":"CONCATENATE(\"ESTABLECIMIENTO/ESTRATEGIA: \",NOMBRE!B3,\" - \",\"( \",NOMBRE!C3,NOMBRE!D3,NOMBRE!E3,NOMBRE!F3,NOMBRE!G3,NOMBRE!H3,\" )\")","v":"ESTABLECIMIENTO/ESTRATEGIA:  - (  )"}]
[{"$f":"CONCATENATE(\"MES: \",NOMBRE!B6,\" - \",\"( \",NOMBRE!C6,NOMBRE!D6,\" )\")","v":"MES:  - (  )"}]
[{"$f":"CONCATENATE(\"AÑO: \",NOMBRE!B7)","v":"AÑO: 2018"}]
[]
[null,"REM-18A  -  LIBRO DE PRESTACIONES DE APOYO DIAGNOSTICO y TERAPÉUTICO\n(USO EXCLUSIVO DE ESTABLECIMIENTOS MUNICIPALES)"]
[]
["SECCIÓN A: EXÁMENES DE DIAGNOSTICO"]
["CÓDIGOS","EXÁMENES","TOTAL","SAPU/SAR/SUR","NO SAPU/ NO SUR","COMPRAS DE SERVICIOS"]
[]
["1.- SANGRE HEMATOLOGÍA"]
["0301001","Acidificación del suero, test de Ham",{"$f":"SUM(D13:E13)","v":0}]
["0301002","Acido fólico o folatos",{"$f":"SUM(D14:E14)","v":0}]
["0301003","Adenograma, esplenograma, mielograma c/u",0]
["0301004","Adhesividad plaquetaria",0]
["0301005","Aglutininas anti Rho",0]
["0301006","Agregación plaquetaria",0]
["0301007","Anticoagulantes circulantes o anticoagulante lúpico",0]
["0301008","Antitrombina III",0]
["0301009","Auto-hemólisis test,  con y sin glucosa",0]
["0301010","Células del lupus, cada muestra",0]
["0301011","Coagulación, tiempo de",0]
["0301012","Coágulo,  tiempo de retracción del",0]
["0301013","Coágulo, tiempo de lisis del",0]
["0301014","Coombs directo, test de",0]
["0301015","Coombs indirecto, prueba de",0]
["0301016","Cuerpos de Heinz",0]
["0301017","Deshidrogenasa glucosa-6-fosfato en eritrocitos",0]
["0301020","Euglobulinas, tiempo de lisis de",0]
["0301021","Fibrinógeno",0]
["0301022","Test de neutralización plaquetaria",0]
["0301023","Factor III plaquetario",0]
["0301024","Factor V",0]
["0301025","Factores VII, VIII, IX, X, XI, XII, XIII, c/u",0]
["0301026","Ferritina",0]
["0301027","Fibrinógeno, productos de degradación del",0]
["0301028","Fierro sérico",0]
["0301029","Fierro, capacidad de fijación del (incluye fierro sérico)",0]
["0301030","Fierro, cinética del (cada determinación)",0]
["0301032","Gelación por etanol",0]
["0301033","Grupos menores. Tipificación o determinación de otros sistemas sanguíneos (Kell, Duffy, Kidd y otros) c/u.",0]
["0301034","Grupos sanguíneos AB0 y Rho (incluye estudio de factor Du en Rh negativos)",0]
["0301035","Haptoglobina cuantitativa",0]
["0301036","Hematocrito (proc. aut.)",0]
["0301038","Hemoglobina en sangre total (proc. aut.)",0]
["0301039","Hemoglobina fetal cualitativa",0]
["0301040","Hemoglobina fetal cuantitativa en eritrocitos",0]
["0301041","Hemoglobina glicosilada",0]
["0301042","Hemoglobina plasmática",0]
["0301043","Hemoglobina termolabil",0]
["0301044","Hemoglobina, electroforesis de (incluye Hb. total)",0]
["0301045","Hemograma (incluye recuentos de leucocitos y eritrocitos, hemoglobina, hematocrito, fórmula leucocitaria, características de los elementos figurados y velocidad de eritrosedimentación)",0]
["0301046","Hemolisinas",0]
["0301047","Hemólisis con sucrosa, test de",0]
["0301048","Hemosiderina medular",0]
["0301049","Heparina, cuantificación de",0]
["0301050","Isoinmunización, detección de anticuerpos irregulares (proc. aut.).",0]
["0301051","Isoinmunización, detección e identificación de anticuerpos",0]
["0301052","Isopropanol, test de",0]
["0301053","Metahemalbúmina",0]
["0301054","Metahemoglobina",0]
["0301055","Muraminidasa en eritrocitos",0]
["0301056","Piruvatoquinasa en eritrocitos",0]
["0301057","Protamina sulfato, determinación de",0]
["0301058","Protoporfirinas en eritrocitos",0]
["0301059","Protrombina, tiempo de o consumo de (incluye INR, Relación Internacional Normalizada)",0]
["0301062","Recuento de basófilos (absoluto)",0]
["0301063","Recuento de eosinófilos (absoluto)",0]
["0301064","Recuento de eritrocitos, absoluto (proc. aut.)",0]
["0301065","Recuento de leucocitos, absoluto (proc. aut.)",0]
["0301066","Recuento de linfocitos (absoluto)",0]
["0301067","Recuento de plaquetas (absoluto)",0]
["0301068","Recuento de reticulocitos (absoluto o porcentual)",{"$f":"SUM(D74:E74)","v":0}]
["0301069","Recuento diferencial o fórmula leucocitaria (proc. aut.)",0]
["0301070","Resistencia globular osmótica",0]
["0301071","Sacarosa, prueba de la",0]
["0301072","Sangría, tiempo de (Ivy) (no incluye dispositivo asociado )",0]
["0301074","Sobrevida del eritrocito (Cr 51 o similar)",0]
["0301075","Subgrupo ABO y Rh fenotipo - genotipo Rh, c/u",0]
["0301076","Thorn, prueba de (no incluye ACTH)",0]
["0301077","Tinción de estearasa",0]
["0301078","Tinción de fosfatasas alcalinas o ácidas",0]
["0301079","Tinción de glicógeno o PAS",0]
["0301080","Tinción de lípidos",0]
["0301081","Tinción de peroxidasas",0]
["0301082","Transferrina",0]
["0301083","Trombina, tiempo de",0]
["0301085","Tromboplastina, tiempo parcial de (TTPA, TTPK o similares)",0]
["0301086","Velocidad de eritrosedimentación (proc. aut.)",0]
["0301087","Vitamina B12, absorción de (Co 57 o similar)",0]
["0301088","Volemia (incluye volumen globular total, volumen plasmático total y volumen sanguíneo total)",0]
["0301089","Von Willebrand, Ag de (factor VIII Ag.)",0]
["0301090","Cofactor de Ristocetina",0]
["0301091","Proteína C",0]
["0301092","Proteína S",0]
["0301093","Resistencia Proteína C",0]
["TOTAL",null,{"$f":"SUM(C13:C97)","v":0},{"$f":"SUM(D13:D97)","v":0},{"$f":"SUM(E13:E97)","v":0},{"$f":"SUM(F13:F97)","v":0}]
["2.- SANGRE BIOQUÍMICO"]
["0302001","Acetona cualitativa",{"$f":"SUM(D100:E100)","v":0}]
["0302002","Acido cítrico",0]
["0302004","Acido láctico",0]
["0302005","Acido úrico",0]
["0302006","Alcohol etílico",0]
["0302007","Aldolasa",0]
["0302008","Amilasa",0]
["0302009","Aminoácidos, cualitativo",0]
["0302010","Amonio",0]
["0302070","Apolipoproteínas (A1, B u otras)",0]
["0302011","Bicarbonato (proc. aut.)",0]
["0302012","Bilirrubina total (proc. aut.)",0]
["0302013","Bilirrubina total y conjugada",0]
["0302014","Bromosulftaleína, prueba de (incluye medicamento y tomas de muestra)",0]
["0302015","Calcio",0]
["0302016","Calcio iónico, incluye proteínas totales",0]
["0302017","Caroteno",0]
["0302018","Caroteno, prueba de sobrecarga de (incluye tomas de muestra)",0]
["0302019","Ceruloplasmina",0]
["0302020","Cobre",0]
["0302067","Colesterol total (proc. aut.)",0]
["0302068","Colesterol HDL (proc. aut.)",0]
["0302021","Colinesterasa en plasma o sangre total",0]
["0302022","Creatina",0]
["0302023","Creatinina",0]
["0302024","Creatinina, depuración de (Clearence) (proc. aut.)",0]
["0302025","Creatinquinasa CK - MB  miocárdica",0]
["0302026","Creatinquinasa CK - total",0]
["0302028","Depuraciones (Clearance) exógenas de Hipurán, Rojo Congo, manitol e inulina, c/u (no incluye medicamento)",0]
["0302029","Deshidrogenasa hidroxibutírica (HBDH)",0]
["0302030","Deshidrogenasa láctica total (LDH)",0]
["0302031","Deshidrogenasa láctica total (LDH), con separación de isoenzimas",0]
["0302032","Electrolitos plasmáticos (sodio, potasio, cloro) c/u",0]
["0302033","Enzima convertidora de angiotensina I",0]
["0302034","Perfil Lipídico (incluye: colesterol total, HDL, LDL, VLDL y triglicéridos) ",0]
["0302035","Fármacos y/o drogas; niveles plasmáticos de (alcohol, anorexígenos, antiarrítmicos, antibióticos, antidepresivos, antiepilépticos, antihistamínicos, antiinflamatorios y analgésicos, estimulantes respiratorios, tranquilizantes mayores y menores, etc.) c/u",0]
["0302036","Fenilalanina",0]
["0302037","Fosfatasas ácidas totales",0]
["0302038","Fosfatasas ácidas totales y fracción prostática",0]
["0302039","Fosfatasas alcalinas con separación de isoenzimas hepáticas, intestinales, óseas c/u",0]
["0302040","Fosfatasas alcalinas totales",0]
["0302041","Fosfolípidos",0]
["0302042","Fósforo (fosfatos)",0]
["0302043","Galactosa",0]
["0302044","Galactosa, curva de tolerancia, (mínimo cuatro determinaciones) (no incluye la galactosa que se administra) (incluye los valores de todas las tomas de muestras necesarias)",0]
["0302045","Gamma glutamiltranspeptidasa (GGT)",0]
["0302046","Gases y equilibrio ácido base en sangre (incluye: pH, O2, CO2, exceso de base y bicarbonato), todos o cada uno de los parámetros",0]
["0302047","Glucosa",0]
["0302048","Glucosa, Prueba de Tolerancia a la Glucosa Oral (PTGO), (dos determinaciones) (no incluye la glucosa que se administra) (incluye el valor de las dos tomas de muestras)",0]
["0302050","Adenosindeaminasa en sangre u otro fluído biológico.",0]
["0302051","Lactosa, curva de tolerancia, (mínimo cuatro determinaciones) (no incluye la lactosa que se administra) (incluye los valores de todas las tomas de muestras necesarias)",0]
["0302052","Leucinaminopeptidasa (LAP)",0]
["0302053","Lipasa",0]
["0302069","Lípidos totales (proc. aut.)",0]
["0302054","Lipoproteínas, electroforesis de (incluye lípidos totales)",0]
["0302055","Litio",0]
["0302056","Magnesio",0]
["0302057","Nitrógeno ureico y/o úrea",0]
["0302058","Osmolalidad en sangre",0]
["0302075","Perfil bioquímico (determinación automatizada de 12 parámetros)",0]
["0302059","Proteínas fraccionadas albúmina/globulina (incluye código 03-02-060)",0]
["0302060","Proteínas totales o albúminas, c/u",0]
["0302061","Proteínas, electroforesis (incluye cód. 03-02-060)",0]
["0302062","Salicilemia cuantitativa        ",0]
["0302076","Perfil Hepático (incluye tiempo de protrombina, bilirrubina total y conjugada, fosfatasas alcalinas totales, GGT, transaminasas GOT/AST y GPT/ALT)",{"$f":"SUM(D164:E164)","v":0}]
["0302063","Transaminasas, oxalacética (GOT/AST), Pirúvica (GPT/ALT), c/u",0]
["0302064","Triglicéridos (proc. aut.)",0]
["0302065","Vitaminas A, B, C, D, E, etc., c/u",0]
["0302066","Xilosa, prueba de absorción (no incluye la xilosa que se administra)",0]
["TOTAL",null,{"$f":"SUM(C100:C168)","v":0},{"$f":"SUM(D100:D168)","v":0},{"$f":"SUM(E100:E168)","v":0},{"$f":"SUM(F100:F168)","v":0}]
["3.- EXÁMENES HORMONALES"]
["0303024","Tiroestimulante (TSH), hormona (adulto, niño o R.N.)                            ",{"$f":"SUM(D171:E171)","v":0}]
["0303025","Tiroglobulina                                                                                   ",0]
["0303026","Tiroxina libre (T4L)                                                                       ",0]
["0303027","Tiroxina o tetrayodotironina (T4)                                               ",0]
["0303028","Triyodotironina (T3)                                                               ",0]
["TOTAL",null,{"$f":"SUM(C171:C175)","v":0},{"$f":"SUM(D171:D175)","v":0},{"$f":"SUM(E171:E175)","v":0},{"$f":"SUM(F171:F175)","v":0}]
["4.- INMUNOLÓGICOS"]
["0305001","Alfa -1- antitripsina cuantitativa",{"$f":"SUM(D178:E178)","v":0}]
["0305002","Alfa -2- macroglobulina",0]
["0305003","Alfa fetoproteínas",0]
["0305004","Tamizaje de Anticuerpos anti antígenos nucleares extractables (a- ENA: Sm, RNP, Ro, La, Scl- 70 y Jo- 1)",0]
["0305005","Anticuerpos antinucleares (ANA), antimitocondriales, anti DNA (ADNA), anti músculo liso, anticentrómero, u otros, c/u.",0]
["0305006","Anticuerpos atípicos, pannel de identificación",0]
["0305007","Anticuerpos específicos y otros autoanticuerpos (anticuerpos antitiroídeos: anticuerpos antimicrosomales y antitiroglobulinas y otros anticuerpos: prostático, espermios, etc.) c/u",0]
["0305008","Antiestreptolisina O, por técnica de látex ",0]
["0305009","Antígeno carcinoembrionario (CEA)",0]
["0305070","Antígeno prostático específico",0]
["0305170","Antígeno Ca 125, Ca 15-3 y Ca 19-9, c/u",0]
["0305010","Beta-2-microglobulina",0]
["0305011","Complejos inmunes circulantes",0]
["0305012","Complemento C1Q, C2, C3, C4, etc., c/u",0]
["0305013","Complemento hemolítico (CH 50)",0]
["0305014","Crioglobulinas, precipitación en frío (cualitativa) o cuantitativa c/u",0]
["0305015","Depósito de complejos inmunes por inmunofluorescencia",0]
["0305016","Depósito de complemento por inmunofluorescencia (C3, C4), c/u",0]
["0305017","Depósito de fibrinógeno por inmunofluorescencia",0]
["0305018","Depósito de inmunoglobulina por inmunofluorescencia (IgG, IgA, IgM) c/u",0]
["0305019","Factor reumatoídeo por técnica de látex u otras similares",0]
["0305020","Factor reumatoídeo por técnica Scat, Waaler Rose, nefelométricas y/o turbidimétricas",0]
["0305021","Inhibidor de C1Q, C2 y C3, c/u",0]
["0305025","Inmunofijación de inmunoglobulina, c/u",0]
["0305026","Inmunoglobulina IgA secretora",0]
["0305027","Inmunoglobulinas IgA, IgG, IgM, c/u",0]
["0305028","Inmunoglobulinas IgE, IgD total, c/u",0]
["0305029","Inmunoglobulinas IgE, IgG específicas, c/u",0]
["0305030","Proteína C reactiva por técnica de látex u otras similares",0]
["0305031","Proteína C reactiva por técnicas nefelométricas y/o turbidimétricas",0]
["0305034","Quimiotaxis-leucotaxis",0]
["0305035","Crioaglutininas",0]
["0305036","Criohemolisinas",0]
["0305037","Digestión fagocítica nitroblue-tetrazolium cualitativo y cuantitativo",0]
["0305038","Fagocitosis: ingestión y digestión (killing) de levaduras por polimorfonucleares",0]
["0305039","Fagocitosis: ingestión y digestión (killing) de bacterias por polimorfonucleares",0]
["0305040","Inmunoadherencia de leucocitos macrófagos",0]
["0305041","Intradermoreacción (PPD, histoplasmina, aspergilina, u otros, incluye el valor del antígeno y reacción de control), c/u. ",0]
["0305042","LIF o MIF",0]
["0305043","Linfocitos B (inmunofluorescencia)",0]
["0305044","Linfocitos B (rosetas EAC) y linfocitos T (rosetas E) c/u",0]
["0305045","Linfocitos T \"helper\" (OKT4) o supresores (OKT8) con antisuero monoclonal, c/u",0]
["0305047","Linfotoxinas humanas, detección de",0]
["0305048","Reacción cutánea 16 alergenos por escarificación (incluye el valor de los antígenos)",0]
["0305049","Transformación linfoblástica a drogas, análisis de transformación espontanea con estimulo inespecífico y con diferentes concentraciones de la droga en 1000 células",0]
["0305051","Absorción de autoanticuerpos del receptor",0]
["0305052","Anticuerpos linfocitotóxicos (PRA) por microlinfocitotoxicidad",0]
["0305053","Autocrossmatch con linfocitos T y B",0]
["0305054","Autocross match con linfocitos totales",0]
["0305056","Alocrossmatch con linfocitos totales",0]
["0305057","Alocrossmatch con linfocitos T y B",0]
["0305058","Cultivo mixto de linfocitos",0]
["0305059","Identificación de clase de inmunoglobulinas de auto o alo cross match positivo",0]
["0305060","Tipificación HLA B-27",0]
["0305061","Tipificación HLA B-8",0]
["0305062","Tipificación HLA  - DR serológica",0]
["0305063","Tipificación HLA - A, B serológica",0]
["TOTAL",null,{"$f":"SUM(C178:C234)","v":0},{"$f":"SUM(D178:D234)","v":0},{"$f":"SUM(E178:E234)","v":0},{"$f":"SUM(F178:F234)","v":0}]
["5.- MICROBIOLÓGICOS"]
["0306001","Baciloscopía Ziehl-Neelsen por concentración de líquidos (orina u otros), c/u",{"$f":"SUM(D237:E237)","v":0}]
["0306002","Baciloscopía Ziehl-Neelsen, c/u",0]
["0306004","Examen directo al fresco, c/s tinción (incluye trichomonas)",0]
["0306005","Tinción de Gram",0]
["0306006","Ultramicroscopía (incluye toma de muestras)",0]
["0306007","Coprocultivo, c/u",0]
["0306008","Corriente (excepto coprocultivo, hemocultivo y urocultivo) c/u",0]
["0306009","Hemocultivo aerobio, c/u",0]
["0306010","Hemocultivo anaerobio, c/u",0]
["0306011","Urocultivo, recuento de colonias y antibiograma (cualquier técnica) (incluye toma de orina aséptica) (no incluye recolector pediátrico)",0]
["0306012","Anaerobios (incluye cód. 03-06-008)",0]
["0306013","Cultivo específico para Bordetella",0]
["0306014","Campylobacter, Yersinia, Vibrio, c/u",0]
["0306015","Difteria",0]
["0306016","Neisseria gonorrhoeae (gonococo)",0]
["0306017","Levaduras",0]
["0306117","Hongos Filamentosos",0]
["0306018","Cultivo para bacilo de Koch, (incluye otras micobacterias)",0]
["0306019","Legionella",0]
["0306020","Listeria",0]
["0306021","Neisseria meningitidis (meningococo)",0]
["0306022","Cultivo y Tipificación de micobacterias",0]
["0306023","Mycoplasma y Ureaplasma, c/u",0]
["0306024","Anaerobios  (mínimo 4 fármacos)",0]
["0306025","Bacilo de Koch (cada fármaco)",0]
["0306026","Corriente (mínimo 10 fármacos) (en caso de urocultivo no corresponde su cobro; incluido en el valor 03-06-011)",0]
["0306027","Estudio de sensibilidad por dilución (CIM) (mínimo 6 fármacos) (en caso de urocultivo, no corresponde su cobro; incluido en el valor código 03-06-011)",0]
["0306028","Antifungigrama (mínimo 4 fármacos antihongos)",0]
["0306029","Autovacunas, incluye cultivo y preparación  de mínimo 10 ampollas",0]
["0306030","Poder bactericida del suero",0]
["0306031","Preparación de vacunas uni o polivalentes mantenidas en stock (mínimo 5 ampollas)",0]
["0306032","Aspergilosis, candidiasis, histoplasmosis u otros hongos por inmunodiagnóstico c/u",0]
["0306033","Brucella, reacción de aglutinación para (Wright-Hudleson) o similares",0]
["0306034","Clamidias por inmunofluorescencia, peroxidasa, Elisa o similares",0]
["0306036","Mononucleosis, reacción de Paul Bunnell, Anticuerpos Heterófilos o similares",0]
["0306037","Mycoplasma IgG, IgM, c/u. ",0]
["0306038","R.P.R.",0]
["0306039","Tíficas, reacciones de aglutinación  (Eberth H y O, paratyphi A y B) (Widal)",0]
["0306041","Treponema pallidum FTA - ABS, MHA-TP c/u",0]
["0306042","V.D.R.L.",0]
["0306043","Artrópodos macroscópicos y microscópicos (imagos y/o pupas y/o larvas), diagnóstico de",0]
["0306045","Coproparasitario seriado con técnica  para Cryptosporidium sp o para Diantamoeba fragilis (incluye los códigos 03-06-048 y/o 03-06-059 más aplicación de técnica de frotis con tinción tricrómica o tinción Ziehl-Neelsen en por lo menos 3 muestras, según corresponda)",0]
["0306046","Coproparasitario seriado para Fasciola hepática (incluye diagnostico de gusanos macroscópicos y ex. microscópico de 10 muestras separadas por método de Telemann y de otras 10 muestras separadas y simultáneas con las ant. por téc. de sedimentación)",0]
["0306047","Coproparasitario seriado para Isospora y Sarcocystis (incluye diagnóstico de gusanos macroscópicos y examen  microscópico de 3 muestras separadas)",0]
["0306048","Coproparasitológico seriado simple (incluye diagnostico de gusanos macroscópicos y examen microscópico por concentración de 3 muestras separadas método Telemann) (proc. aut.)",0]
["0306049","Diagnostico de parásitos en jugo duodenal y/o bilis, examen macroscópico y microscópico (directo y/o concentración, c/s tinción)",0]
["0306050","Diagnostico parasitario en exudados, secreciones y otros líquidos orgánicos (no especificados mas adelante), examen macro y microscópico de (incluye concentración y/o tinción cuando proceda), c/u",0]
["0306051","Graham, examen de (incluye diagnostico de gusanos macroscópicos y examen microscópico de 5 muestras separadas)",0]
["0306052","Gusanos macroscópicos, diagnóstico de (proc. aut.)",0]
["0306053","Hemoparásitos, diagnóstico microscópico de (mínimo 10 frotis y/o gotas gruesas, c/s examen directo al fresco), cada sesión",0]
["0306054","Hemoparásitos, diagnóstico por técnica de Strout o similar en hasta 10 tubos capilares, cada sesión",0]
["0306056","Raspado de piel, examen microscópico de (\"Acarotest\"): de 6 a 10 preparaciones",0]
["0306057","Tenias post. trat., Diagnostico y búsqueda de escólex de",0]
["0306058","Xenodiagnóstico (cada aplicación de 2 cajas, con 6 ninfas por lo menos c/u, examinadas a los 20 y/o 30 días y hasta por 60 días más si procede)",0]
["0306059","Coproparasitológico seriado simple (incluye diagnóstico de gusanos macroscopicos  y exámen microscopico por concentración de tres muestras separadas método PAFS (proc. aut.)",0]
["0306061","Elisa indirecta (Chagas, hidatidosis, toxocariasis y otras), c/u",0]
["0306062","Fijación del complemento (distomatosis, toxoplasmosis, cisticercosis y otras) c/u",0]
["0306063","Floculación en bentonita, látex, precipitinas o similar (triquinosis, hidatidosis y otros), c/u",0]
["0306064","Hemaglutinación indirecta (toxoplasmosis, Chagas, hidatidosis y otras), c/u",0]
["0306065","Inmunoelectroforesis o contrainmunoelectroforesis (hidatidosis, distomatosis, amebiasis y otras), c/u",0]
["0306066","Inmunofluorescencia indirecta (toxoplasmosis, Chagas, amebiasis y otras), c/u",0]
["0306067","Reacción intradérmica (incluye el valor y la aplicación del antígeno y del control y examen de las reacciones inmediatas y retardadas, cada antígeno) (bachmann, distomatosis u otras)",{"$f":"SUM(D298:E298)","v":0}]
["0306068","Aislamiento de virus (adenovirus, citomegalovirus, Coxsakie, herpes, influenza, polio, sarampión y otros), c/u",0]
["0306069","Anticuerpos virales, determ. de (adenovirus, citomegalovirus, herpes simple, rubéola, Influenza  A y B; virus varicela-zoster; virus sincicial respiratorio; parainfluenza 1, 2 y 3, Epstein Barr y otros), c/u",0]
["0306169","Anticuerpos virales, determ. de H.I.V.",0]
["0306070","Antígenos virales determ. de (adenovirus, citomegalovirus, herpes simple, rubéola, influenza y otros), (por cualquier técnica ej: inmunofluorescencia), c/u",0]
["0306170","Antígenos virales determ. de rotavirus, por cualquier técnica ",0]
["0306270","Antígenos virales determ. de virus sincicial, por cualquier técnica ",0]
["0306072","Reacción de seroneutralización para: virus polio, ECHO, Coxsakie, c/u",0]
["0306073","Virus hepatitis A, Anticore",0]
["0306074","Virus hepatitis A, anticuerpos IgM del",0]
["0306075","Virus hepatitis B, anticuerpo del antígeno E del",0]
["0306076","Virus hepatitis B, anticore total del (anti HBc total)",0]
["0306077","Virus hepatitis B, anticuerpos de antígeno de superficie (australiano)",0]
["0306078","Virus hepatitis B, antígeno E del (HBEAg)",0]
["0306079","Virus hepatitis B, antígeno superficie",0]
["0306080","Virus hepatitis B, anticore IgM del (anti HBc IgM)",0]
["0306081","Virus hepatitis C, anticuerpos de (anti HCV)",0]
["TOTAL",null,{"$f":"SUM(C237:C314)","v":0},{"$f":"SUM(D237:D314)","v":0},{"$f":"SUM(E237:E314)","v":0},{"$f":"SUM(F237:F314)","v":0}]
["6.- EXÁMENES DE DEPOSICIONES, EXUDADOS, SECRESIONES Y OTROS LÍQUIDOS"]
["0308001","Azúcares reductores (Benedict-Fehling o similar)",{"$f":"SUM(D317:E317)","v":0}]
["0308002","Balance graso (Van de Kamer) muestra de tres o más días",0]
["0308003","Grasas neutras (Sudán III)",0]
["0308004","Hemorragias ocultas, (bencidina, guayaco o test de Weber y similares), cualquier método, c/muestra",0]
["0308005","Leucocitos fecales",0]
["0308006","PH",0]
["0308007","Porfirinas, c/u",0]
["0308008","Urobilinógeno cuantitativo",0]
["0308009","Células neoplásicas en fluídos biológicos",0]
["0308010","Citológico c/s tinción (incluye examen al fresco, recuento celular y citológico porcentual)",0]
["0308011","Directo al fresco c/s tinción, (incluye trichomonas)",0]
["0308012","Electrolitos (sodio, potasio, cloro), c/u",0]
["0308013","Eosinófilos, recuento de",0]
["0308014","Físico-químico (incluye aspecto, color, pH, glucosa, proteína, Pandy y filancia)",0]
["0308015","Glucosa",0]
["0308016","Mucina, determinación de",0]
["0308017","pH, (proc. aut.)",0]
["0308018","Proteínas totales o albúmina (proc. aut.) c/u",0]
["0308019","Proteínas, electroforesis de (incluye proteínas totales)",0]
["0308020","Bandas oligoclonales (incluye electroforesis de L.C.R., suero e inmunofijación)",0]
["0308021","Glutamina",0]
["0308022","Indice IgG/albúmina (incluye determ. de IgG y albúmina en L.C.R. y suero)",0]
["0308023","Estudio de cristales (con luz polarizada)",0]
["0308024","Acidez titulable, pH, volumen (una muestra)",0]
["0308025","Prueba de estimulación máxima con histamina, mínimo 5 muestras (no incluye la histamina ni el antihistamínico).",0]
["0308026","Volumen, anhídrido carbónico, amilasa y lipasa",0]
["0308027","Cristales de colesterol",0]
["0308028","Lípidos biliares",0]
["0308029","Espermiograma (físico y microscópico, con o sin observación hasta 24 horas)",0]
["0308030","Fosfatasa ácida prostática",0]
["0308031","Fructosa, consumo de",0]
["0308032","Bilirrubina                               ",0]
["0308033","Células anaranjadas (proc. aut.)",0]
["0308034","Contaminantes (meconio y sangre) (proc. aut.)",0]
["0308035","Creatinina (proc. aut.)",0]
["0308036","Fosfatidil glicerol y/o fosfatidil inositol",0]
["0308037","Indice de bilirrubina (prueba de Liley)",0]
["0308038","Indice lecitina/esfingomielina",0]
["0308039","Madurez fetal completa (físico; células anaranjadas, bilirrubina, test de Clements, creatinina, contaminantes)",0]
["0308040","Test de Clements (proc. aut.)",0]
["0308041","Colpocitograma",0]
["0308042","Cristalización y filancia de moco cervical",0]
["0308043","Moco-semen, prueba de compatibilidad",0]
["0308044","Flujo vaginal o secreción uretral, estudio de (incluye toma de muestra y códigos 03-06-004, 03-06-005, 03-06-008, 03-06-017, y 03-06-026 )",0]
["TOTAL",null,{"$f":"SUM(C317:C360)","v":0},{"$f":"SUM(D317:D360)","v":0},{"$f":"SUM(E317:E360)","v":0},{"$f":"SUM(F317:F360)","v":0}]
["7.- EXÁMENES DE ORINA"]
["0309001","Acido ascórbico",{"$f":"SUM(D363:E363)","v":0}]
["0309002","Acido delta aminolevulínico",0]
["0309003","Acido fenilpirúvico (PKU, cualitativo)",0]
["0309004","Acido úrico cuantitativo",0]
["0309005","Acido 5 hidroxiindolacético cuantitativo",0]
["0309006","Amilasa cuantitativa",0]
["0309007","Aminoácidos (cualitativo) (excepto fenilalanina, PKU)",0]
["0309008","Calcio cuantitativo",0]
["0309009","Cálculo urinario (examen físico y químico)",0]
["0309010","Creatinina cuantitativa",0]
["0309011","Cuerpos cetónicos",0]
["0309012","Electrolitos (sodio, potasio, cloro) c/u",0]
["0309013","Microalbuminuria cuantitativa",0]
["0309014","Embarazo, detección de (cualquier técnica)",0]
["0309040","Fenilquetonuria (PKU), cuantitativo",0]
["0309015","Fósforo cuantitativo",0]
["0309016","Glucosa (cuantitativo)",0]
["0309035","Hemosiderina",0]
["0309017","Hidroxiprolina",0]
["0309018","Melanogenuria (test de cloruro férrico)",0]
["0309019","Mucopolisacáridos",0]
["0309020","Nitrógeno ureico o urea cuantitativo",0]
["0309021","Nucleótidos cíclicos (CAMP, CGM, u otros) c/u",0]
["0309022","Orina completa, (incluye cód. 03-09-023 y 03-09-024)",0]
["0309023","Orina, físico-químico (aspecto, color, densidad, pH, proteínas, glucosa, cuerpos cetónicos, urobilinógeno, bilirrubina, hemoglobina y nitritos) todos o cada uno de los parámetros (proc. aut.)",0]
["0309024","Orina, sedimento (proc. aut.)",0]
["0309025","Osmolalidad",0]
["0309027","Porfirinas, c/u",0]
["0309028","Proteína (cuantitativa)",0]
["0309029","Proteínas de Bence-Jones prueba térmica",0]
["TOTAL",null,{"$f":"SUM(C363:C392)","v":0},{"$f":"SUM(D363:D392)","v":0},{"$f":"SUM(E363:E392)","v":0},{"$f":"SUM(F363:F392)","v":0}]
["TOTAL EXÁMENES",null,{"$f":"+C98+C169+C235+C315+C361+C393+C176","v":0},{"$f":"+D98+D169+D176+D235+D315+D361+D393","v":0},{"$f":"+E98+E169+E235+E315+E361+E393+E176","v":0},{"$f":"+F98+F169+F235+F315+F361+F393+F176","v":0}]
["EXÁMENES RADIOLÓGICOS"]
["0401001","Radiografía de las glándulas salivales \"sialografía\"",{"$f":"SUM(D396:E396)","v":0}]
["0401002","Radiografía de partes blandas, laringe lateral, cavum rinofaríngeo (rinofarinx). ",0]
["0401003","Planigrafías laringe  (4 EXP.)                     ",0]
["0401004","Radiografía de tórax, proyección complementaria (oblicuas, selectivas u otras)",0]
["0401005","Tórax, proyección complementaria de corazón (oblicuas u otras) (1 exp.) c/u       ",0]
["0401006"," Estudio radiológico de corazón (incluye fluoroscopía, telerradiografías frontal y lateral con esofagograma) ",0]
["0401007"," Planigrafia localizada (incluye mínimo 6 cortes) (6 exp.)     ",0]
["0401008","Radiografía de tórax  frontal o lateral con equipo móvil fuera del departamento de rayos.",0]
["0401009","Radiografía de tórax simple frontal o lateral ",0]
["0401070","Radiografía de tórax frontal y lateral",0]
["0401010","Mamografía bilateral",{"$f":"SUM(D406:E406)","v":0}]
["0401110","Mamografía unilateral",{"$f":"SUM(D407:E407)","v":0}]
["0401130","Mamografía proyección complementaria  (axilar u otras)",0]
["0401011","Marcación preoperatoria de lesiones de la mama",0]
["0401012","Radiografía de mama, pieza operatoria",0]
["0401013","Radiografía de Abdomen Simple",0]
["0401014","Radiografía de abdomen simple, proyección complementaria (lateral y/o oblicua)",0]
["0401015","Colangiografía intra o postoperatoria (por sonda T, o similar)",0]
["0401016","Colangiografía medica con planigrafía (6 exp.)        ",0]
["0401017","Colecistografía c/s seriografía (34 exp.)                ",0]
["0401018","Enema baritado del colon (incluye llene y control post-vaciamiento)",0]
["0401019","Enema baritado del colon o intestino delgado, doble contraste",0]
["0401020","Esofagograma  (incluye pesquisa de cuerpo extraño) (proc.aut.)",0]
["0401021","Radiografía de esófago, estómago y duodeno, relleno y/o doble contraste ",0]
["0401022","Estudio radiológico de deglución faríngea",0]
["0401023","Estudio radiológico del intestino delgado",0]
["0401024","Radiografía de esófago, estómago y duodeno, simple en niños ",0]
["0401026","Pielografía de eliminación con control minutado (10 exp.)",0]
["0401027","Pielografía de eliminación o descendente: incluye renal y vesical simples previas, 3 placas post inyección de medio de contraste, controles de pie y cistografía pre y post miccional. ",0]
["0401028","Radiografía renal simple (proc. aut.)",0]
["0401029","Radiografía vesical simple o perivesical (proc. aut.)",0]
["0401030","Radiografía agujeros ópticos, ambos lados",0]
["0401031","Radiografía de cavidades perinasales, órbitas, articulaciones temporomandibulares, huesos propios de la nariz, malar, maxilar, arco cigomático y cara",0]
["0401032","Radiografía de cráneo frontal y lateral",0]
["0401033","Radiografía de Cráneo  proyección especial de  base de cráneo (Towne)",0]
["0401034","Radiografía de globo ocular, estudio de cuerpo extraño",0]
["0401035","Radiografía de oído, uno o ambos ",0]
["0401036","Radiografía de oído, uno o ambos (2 proy.) (2 exp.)                     ",0]
["0401037","Radiografía de oído, uno o ambos (3 proy.) (3 exp.)                    ",0]
["0401038","Planigrafía de oidos (68 exp.)                     ",0]
["0401039","Planigrafía silla turca, canal optico, cavidades perinasales, c/u (68 exp.)  ",0]
["0401040","Radiografía de silla turca frontal y lateral ",0]
["0401041","Planigrafía localizada (cervical, dorsal o lumbosacra) (68 exp.)              ",0]
["0401042","Radiografía de columna cervical o atlas-axis (frontal y lateral)",0]
["0401043","Radiografía de columna cervical (frontal, lateral y oblicuas)",0]
["0401044","Radiografía de columna cervical  flexión y  extensión (Dinámicas)",0]
["0401045","Radiografía de columna dorsal o dorsolumbar localizada, parrilla costal adultos (frontal y lateral).",0]
["0401046","Radiografía columna lumbar o lumbosacra   ",0]
["0401047","Radiografía columna lumbar o lumbosacra  flexión y  extensión (Dinámicas)",0]
["0401048","Radiografía columna lumbar o lumbosacra, oblicuas adicionales ",0]
["0401049","Radiografía de columna total, panorámica con folio graduado  frontal o lateral",0]
["0401051","Radiografía de pelvis, cadera o coxofemoral",0]
["0401151","Radiografía de pelvis, cadera o coxofemoral de RN, lactante o niño menor de 6 años.",0]
["0401052","Radiografía de pelvis, cadera o coxofemoral, proyecciones especiales; (rotación interna, abducción, lateral, Lawenstein u otras)",0]
["0401053","Radiografía de Sacrocoxis o articulaciones sacroilíacas.",0]
["0401054","Radiografía de brazo, antebrazo, codo, muñeca, mano, dedos, pie  (frontal y lateral)",0]
["0401055","Radiografía de clavícula.",0]
["0401056","Radiografía Edad Ósea: carpo y mano ",0]
["0401057","Radiografía Edad ósea : rodilla frontal",0]
["0401058","Estudio radiológico de escafoides",0]
["0401059","Estudio radiológico de muñeca o tobillo frontal lateral y oblicuas",0]
["0401060","Radiografía de hombro, fémur, rodilla, pierna, costilla o esternón Frontal y Lateral",0]
["0401061","Planigrafía ósea frontal y/o lateral (6 exp.) ",0]
["0401062","Radiografía de Proyecciones especiales oblicuas u otras en hombro, brazo, codo, rodilla, rótulas, sesamoideos, axial de ambas rótulas o similares",0]
["0401063","Radiografía de túnel intercondíleo o radio-carpiano",{"$f":"SUM(D460:E460)","v":0}]
["0401064","Apoyo fluoroscópico a procedimientos intraoperatorios y/o biopsia (no incluye el proc.)",0]
["0404002","Ecografía obstétrica",0]
["0404003","Ecografía abdominal (incluye hígado, vía biliar, vesícula, páncreas, riñones, bazo, retroperitoneo y grandes vasos)",0]
["0404004","Ecografía como apoyo a cirugía, o a procedimiento (de tórax, muscular, partes blandas, etc.)",0]
["0404005","Ecografía transvaginal o transrectal",0]
["0404006","Ecografía ginecológica, pelviana femenina u obstétrica con estudio fetal",0]
["0404007","Ecografía transvaginal para seguimiento de ovulación, procedimiento completo (6-8 sesiones )",0]
["0404008","Ecografía para seguimiento de ovulación, procedimiento completo (6 a 8 sesiones)",0]
["0404009","Ecografía pélvica masculina (incluye vejiga y próstata)",0]
["0404010","Ecografía renal (bilateral), o de bazo",0]
["0404011","Ecografía encefálica (RN o lactante)",0]
["0404012","Ecografía mamaria bilateral (incluye Doppler)",0]
["0404013","Ecografía ocular, uno o ambos ojos.",0]
["0404014","Ecografía testicular (uno o ambos) (Incluye Doppler)",0]
["0404015","Ecografía tiroidea (Incluye Doppler)",0]
["0404016","Ecografía vascular periférica, articular o de partes blandas",{"$f":"SUM(D476:E476)","v":0}]
["0404018","Ecotomografía vascular periférica (bilateral), cervical (bilateral), abdominal o de otros órganos con doppler duplex                 ",0]
["0404019","Ecotomografía vascular periférica (bilateral), cervical (bilateral), abdominal o de otros órganos con doppler color                ",{"$f":"SUM(D478:E478)","v":0}]
["SECCIÓN B: PROCEDIMIENTOS APOYO CLÍNICO Y TERAPÉUTICO"]
["CÓDIGOS","PROCEDIMIENTOS","TOTAL","SAPU/SAR/SUR","NO SAPU/ NO SUR","FUNCIONARIO",null,"COMPRAS DE SERVICIOS"]
[null,null,null,null,null,"MÉDICO","OTRO"]
["NEUROLOGÍA"]
[1101003,"Lumbar c/s manometria c/s queckensted   ",{"$f":"SUM(D483:E483)","v":0}]
["OFTALMOLOGÍA"]
[1201003,"cuantificacion de lagrimacion (test de   schirmer),  uno o                  ",{"$f":"SUM(D485:E485)","v":0}]
[1201004,"curva de tension aplanatica (por cada dia), c/ojo                                ",{"$f":"SUM(D486:E486)","v":0}]
[1201005,"diploscopia cuantitativa, ambos ojos                                                      ",0]
[1201009,"exploracion sensoriomotora: estrabismo, estudio completo ,               ",0]
[1201012,"retinografia, ambos ojos                                                                           ",0]
[1201014,"tonometria ocular, cualquier tecnica, c/ojo                                            ",0]
[1201015,"tratamiento ortoptico y/ o pleoptico (por sesion) ,                               ",0]
[1201019," Exploracion vitreorretinal, ambos ojos                                                       ",0]
[1201029,"Cuerpo extrano conjuntival y/o corneal en adultos                                 ",{"$f":"SUM(D493:E493)","v":0}]
[1201042,"Campimetría computarizada, c/ojo (excluye UAPO)                            ",{"$f":"SUM(D494:E494)","v":0}]
[1201042,"Campimetría computarizada, c/ojo (en UAPO)                                  ",{"$f":"SUM(D495:E495)","v":0}]
["TOTAL",null,{"$f":"SUM(C485:C495)","v":0},{"$f":"SUM(D485:D495)","v":0},{"$f":"SUM(E485:E495)","v":0},{"$f":"SUM(F485:F495)","v":0},{"$f":"SUM(G485:G495)","v":0},{"$f":"SUM(H485:H495)","v":0}]
["OTORRINOLARINGOLOGÍA"]
[1301025,"Taponamiento nasal anterior (proc. aut.)",{"$f":"SUM(D498:E498)","v":0}]
[1301026,"Taponamiento nasal posterior",0]
[1301029,"Cuerpo extraño en fosas nasales, extraccion en adultos        ",0]
[1301030,"Cuerpo extraño en fosas nasales, extraccion en niños        ",0]
[1301042,"Trompa de eustaquio, insuflacion instrumental (proc. Aut.) en adultos                                                                             ",0]
[1301043,"Trompa de eustaquio, insuflacion instrumental (proc. Aut.) en ninos                                                                                     ",0]
["TOTAL",null,{"$f":"SUM(C498:C503)","v":0},{"$f":"SUM(D498:D503)","v":0},{"$f":"SUM(E498:E503)","v":0},{"$f":"SUM(F498:F503)","v":0},{"$f":"SUM(G498:G503)","v":0},{"$f":"SUM(H498:H503)","v":0}]
["DERMATOLOGÍA Y TEGUMENTOS"]
[1601110,"Curetaje de lesiones virales o similares hasta 10 lesiones                          ",{"$f":"SUM(D506:E506)","v":0}]
[1601115,"Implantes subcutaneos                                                                              ",{"$f":"SUM(D507:E507)","v":0}]
[1602240,"Curacion por medico, quemadura o similar menor al 5% superficie corporal en pabellon       ",{"$f":"SUM(D508:E508)","v":0}]
[1602241,"Curacion por medico, quemadura o similar  5 a 10% superficie corporal en pabellon        ",{"$f":"SUM(D509:E509)","v":0}]
[1602206,"Extirpacion de lesiones benignas por sec tangencial ,curetaje,y/o fulguracion hasta 15 lesiones   ",{"$f":"SUM(D510:E510)","v":0}]
["TOTAL",null,{"$f":"SUM(C506:C510)","v":0},{"$f":"SUM(D506:D510)","v":0},0,0,0,0]
["CARDIOLOGÍA"]
["1701001","Electrocardiograma",{"$f":"SUM(D513:E513)","v":0}]
["1701006","E.C.G. Continuo (test holter o similares, por ej. variabilidad de la frecuencia cardiaca y/o alta resolución  del st y/o despolarización tardía);20 a 24 horas de registro                                                                         ",{"$f":"SUM(D514:E514)","v":0}]
["1701009","Monitoreo continuo de presión arterial",{"$f":"SUM(D515:E515)","v":0}]
["TOTAL",null,{"$f":"SUM(C513:C515)","v":0},{"$f":"SUM(D513:D515)","v":0},0,0,0,{"$f":"SUM(H513:H515)","v":0}]
["NEUMOLOGÍA"]
[1707001,"Espirometría Basal                                                                                       ",{"$f":"SUM(D518:E518)","v":0}]
[1707002,"Espirometria basal y con broncodilatador                                                         ",{"$f":"SUM(D519:E519)","v":0}]
[1707004,"Test de provocacion con ejercicio                                                                      ",{"$f":"SUM(D520:E520)","v":0}]
[1707030,"Aerosolterapia (Nebulización)    ",{"$f":"SUM(D521:E521)","v":0}]
["TOTAL",null,{"$f":"SUM(C518:C521)","v":0},{"$f":"SUM(D518:D521)","v":0},{"$f":"SUM(E518:E521)","v":0},{"$f":"SUM(F518:F521)","v":0},{"$f":"SUM(G518:G521)","v":0},{"$f":"SUM(H518:H521)","v":0}]
["GASTROENTEROLOGÍA"]
[1801023,"Intubacion con sonda gastrica                                                                ",{"$f":"SUM(D524:E524)","v":0}]
[1801042,"Vaciamiento manual de fecaloma                                                                   ",{"$f":"SUM(D525:E525)","v":0}]
[1801001,"Gastroduodenoscopía (incluye esofagoscopía)                                                      ",{"$f":"SUM(D526:E526)","v":0}]
["TOTAL",null,{"$f":"SUM(C524:C526)","v":0},0,0,0,0,0]
["UROLOGÍA"]
[1901019,"Instilacion vesical (incluye colocacion de sonda) proc. Aut.                                      ",{"$f":"SUM(D529:E529)","v":0}]
[1901022,"Vac. Vesical por sonda uretral, (proc. Aut.)                                                    ",{"$f":"SUM(D530:E530)","v":0}]
["TOTAL",null,{"$f":"SUM(C529:C530)","v":0},{"$f":"SUM(D529:D530)","v":0},0,0,0,0]
["GINECOLOGÍA"]
[2001015,"Colocación o extracción de dispositivo intrauterino (no incluye el valor del dispositivo)                    ",{"$f":"SUM(D533:E533)","v":0}]
["ORTOPEDIA Y TRAUMATOLOGÍA"]
[2101001,"Infiltracion local medicamentos (bursas, tendones, yuxtaarticulares y/o intraarticulares",{"$f":"SUM(D535:E535)","v":0}]
[2101002,"Procedimiento para exploraciones radiologicas (incluye maniobra e inyeccion del medio de contraste)  BM18A  Revisar en BM Colocación valva",{"$f":"SUM(D536:E536)","v":0}]
[2106005,"Rodillera, bota larga o corta de yeso",{"$f":"SUM(D537:E537)","v":0}]
[2106007,"Velpeau",0]
[2106006,"Yeso antebraquial c/s ferula digital",0]
[2106004,"Yeso braquicarpiano",0]
[2107003,"Luxaciones de articulaciones menores (el resto)      ",0]
["TOTAL",null,{"$f":"SUM(C535:C541)","v":0},{"$f":"SUM(D535:D541)","v":0},0,0,0,0]
[" SECCIÓN C: INTERVENCIONES QUIRÚRGICAS MENORES"]
[1602201,"Biopsia de piel y/o mucosa por curetaje o sección tangencial c/s electro x 1 sesion        ",{"$f":"SUM(D544:E544)","v":0}]
[1602202,"Extirpacion de, reparacion o biopsia total o parcial, de lesiones benignas cutáneas por excision cabeza, cuello, genitales, hasta 3 lesiones                                                                  ",0]
[1602203,"Extirpacion de, reparacion o biopsia total o parcial, de lesiones benignas cutáneas por excision resto de cuerpo hasta 3 lesiones                                                                              ",0]
[1602204,"Extirpacion de, reparacion o biopsia total o parcial, de lesiones benignas cutáneas por excision cabeza, cuello, genitales, desde 4 hasta 6 lesiones                                              ",0]
[1602205,"Extirpacion de, reparacion o biopsia total o parcial, de lesiones benignas cutáneas por excision resto de cuerpo desde 4 hasta 6 lesiones                                                             ",0]
[1602206,"Extirpacion de lesiones benignas por sec tangencial ,curetaje,y/o fulguracion hasta 15 lesiones   ",0]
[1602207,"Tratamiento por electro de hemangiomas o telangectasias hasta 15 lesiones",0]
[1602211,"Cabeza, cuello, genitales: tratamiento quirúrgico de tumor maligno por escisión total o parcial, con o sin sutura, por cada lesión o melanoma cualquier localización",0]
[1602212,"Resto del cuerpo: tratamiento quirúrgico de tumor maligno por escisión total o parcial, con o sin sutura, por cada lesión",0]
[1602213,"Cabeza, cuello, genitales o melanoma cualquier ubicación: ampliación de márgenes quirúrgicos de tumor maligno extirpado previamente ",0]
[1602214,"Resto del cuerpo: ampliación de márgenes quirúrgicos de tumor maligno extirpado prevíamente",0]
[1602215,"Tumores vasculares profundos cara, cuero cabelludo, cuello, genitales",0]
[1602216,"Tumores vasculares profundos resto del cuerpo",0]
[1602221,"Herida cortante o contusa complicada, reparación y sutura (más de 5 cm)",0]
[1602222,"Herida cortante o contusa NO complicada, reparacion y sutura (una o multiples de mas de 5 cms de largo total y/o que comprometa solo piel)                                                                             ",0]
[1602223,"Cabeza, cuello, genitales: extirpación de lesión benigna subepidérmica, incluye tumor sólido, quiste epidérmico y lipoma por lesión ",{"$f":"SUM(D559:E559)","v":0}]
[1602224,"Resto del cuerpo: extirpación de lesión benigna subepidérmica, incluye tumor sólido, quiste epidérmico y lipoma por lesión ",0]
[1602225,"Vaciamiento y curetaje quirurgico de lesiones quistica o abscesos                              ",0]
[1602231,"Onisectomia total o parcial simple                                                                                      ",0]
[1602232,"Cirugia reparadora ungueal por proceso inflamatorio                                                                 ",0]
[1602233,"Correccion quirurgica de defecto congenito o por tumor ungueal",0]
[1602240,"Curacion por medico, quemadura o similar menor al 5% superficie corporal en pabellon       ",0]
[1602241,"Curacion por medico, quemadura o similar  5 a 10% superficie corporal en pabellon        ",0]
[1602242,"Curacion por medico, quemadura o similar  mayor  al 10% superficie corporal en pabellon",0]
["TOTAL",null,{"$f":"SUM(C544:C563)","v":0},0,0,0,0,0]
["SECCIÓN D: MISCELÁNEOS"]
["0106002","Curación simple ambulatoria",{"$f":"SUM(D570:E570)","v":0}]
["0106005","Autocontrol pacientes Diabetico insulino dependiente (D.I.D. mensual)",{"$f":"SUM(D571:E571)","v":0}]
["0106006","Oxigenoterapia domiciliaria (pacientes oxígeno dependientes)",0]
["0106017","Curación compleja",0]
["0106007","Extracción cuerpo extraño ojo",0]
["0106008","Extracción cuerpo extraño otro lugar",0]
["0106009","Lavado gástrico",0]
["0106010","Lavado oído",0]
["0106011","Técnicas reanimación cardiopulmonar básico",0]
["0106012","Técnicas reanimación cardiopulmonar avanzado",0]
["0106013","Aseo ocular",{"$f":"SUM(D580:E580)","v":0}]
["0106014","Administración inyecciones",0]
["0106015","Administración fleboclisis",0]
["0106020","Administración oxigeno",0]
["0106021","Aspiración secreciones",0]
["0106022","Instalación sonda",{"$f":"SUM(D585:E585)","v":0}]
[null,"Procedimientos de podología",{"$f":"SUM(D586:E586)","v":0}]
["TOTAL",null,{"$f":"SUM(C570:C586)","v":0},0,0,0,0,0]
["CÓDIGOS","OTROS PROCEDIMIENTOS","TOTAL","SAPU/SAR/SUR","NO SAPU/ NO SUR","COMPRAS DE SERVICIOS"]
[]
["0307011","Toma de muestra de sangre venosa en adultos",{"$f":"SUM(D590:E590)","v":0}]
["0307012","Toma de muestra de sangre venosa en niños y lactantes",{"$f":"SUM(D591:E591)","v":0}]
["TOTAL",null,{"$f":"SUM(C590:C591)","v":0},{"$f":"SUM(D590:D591)","v":0},0,0]
["SECCIÓN E: OTROS EXÁMENES Y PROCEDIMIENTOS  DE APOYO CLÍNICO Y TERAPEUTICO (SIN CÓDIGO EN ARANCEL)"]
["EXÁMENES Y/O PROCEDIMIENTO",null,"TOTAL","SAPU/SAR/SUR","NO SAPU/ NO SUR","FUNCIONARIO",null,"COMPRAS DE SERVICIOS"]
[null,null,null,null,null,"MÉDICO","OTRO"]
["Toma agudeza visual (ambos ojos)",null,{"$f":"SUM(D596:E596)","v":0}]
["Autorrefractomia",null,{"$f":"SUM(D597:E597)","v":0}]
["Lensometria",null,0]
["Paquimetria Ultrasónica",null,0]
["Paquimetria óptica",null,0]
["Tomografía coherencia óptica",null,0]
["Inyeccion intravitrea avastin",null,0]
["Insercion Implante Anticonceptivo",null,0]
["Remocion Implante Anticonceptivo",null,0]
["Insercion Pellets subcutáneo",null,0]
["Hemoglocotest instantaneo ",null,0]
["Radiografía de pelvis, cadera o coxofemoral de 1er screening  (entre 3 -6 meses)",null,0]
["Cartridge para Troponina",null,0]
["Cartridge Multiple",null,0]
["TOTAL",null,{"$f":"SUM(C596:C609)","v":0},{"$f":"SUM(D596:D609)","v":0},0,0,0,0]

{"sheet":"Control","index":3,"n_rows":80,"n_cols":4,"rows_kept":80,"cut":false,"hidden":false,"merged":[]}
[]
[null,"HOJA","SECCION","Nº Errores"]
[null,"NOMBRE","Código comuna",{"$f":"+NOMBRE!AF2","v":1}]
[null,"NOMBRE","Código establecimiento/estrategia",{"$f":"+NOMBRE!AF3","v":1}]
[null,"NOMBRE","Tipo establecimiento/estrategia",{"$f":"+NOMBRE!AF4","v":1}]
[null,"NOMBRE","Dependencia",{"$f":"+NOMBRE!AF5","v":1}]
[null,"NOMBRE","Código Mes",{"$f":"+NOMBRE!AF6","v":1}]
[null,"B18","SECCIÓN D : INTERVENCIONES QUIRÚRGICAS MENORES POR EDAD",{"$f":"SUM('BM18'!W53:W55)","v":0}]
[null,null,"TOTAL ERRORES",{"$f":"SUM(D3:D8)","v":5}]
[]
[]
[]
[null,"¿Nombre vacío?"]
[null,{"$f":"ISBLANK(NOMBRE!B2)","v":true}]
[]
[]
[]
[]
[]
[]
[]
[]
[]
[]
[]
[]
[]
[]
[]
[]
[]
[]
[]
[]
[]
[]
[]
[]
[]
[]
[]
[]
[]
[]
[]
[]
[]
[]
[]
[]
[]
[]
[]
[]
[]
[]
[]
[]
[]
[]
[]
[]
[]
[]
[]
[]
[]
[]
[]
[]
[]
[]
[]
[]
[]
[]
[]
[]
[]
[null,null,null,{"$f":"SUM(D3:D7)","v":5}]

{"sheet":"MACROS","index":4,"n_rows":7,"n_cols":2,"rows_kept":7,"cut":false,"hidden":false,"merged":[[0,0,0,13],[6,1,7,7]]}
["Hoja de Macros y Utilidades"]
[{"$f":"CONCATENATE(\"ESTABLECIMIENTO/ESTRATEGIA: \",NOMBRE!B3,\" - \",\"( \",NOMBRE!C3,NOMBRE!D3,NOMBRE!E3,NOMBRE!F3,NOMBRE!G3,NOMBRE!H3,NOMBRE!I3,\" )\")","v":"ESTABLECIMIENTO/ESTRATEGIA:  - ( Falta Cód. Est. )"}]
[]
[]
[null,"CREA UNA COPIA  DEL ARCHIVO  (TRANFORMA HOJAS A VALORES)\nA ESTE NUEVO ARCHIVO DEBERÁ ASIGNARLE UN NOMBRE"]
[null,"Contraseña para copia del archivo :DEIS"]
[null,{"$f":"IF(Control!D9>0,\"REVISE LA HOJA CONTROL, EXISTEN ERRORES\",\"\")","v":"REVISE LA HOJA CONTROL, EXISTEN ERRORES"}]